bitfinex/quotes_SOLUSD_20250424
["timestamp","ask_amount","ask_price","bid_price","bid_amount"]
[1745462154599,16.66333399,150.03,150.0,15.62011446]
[1745462156312,23.32866758,150.03,150.0,15.62011446]
[1745462156489,23.32866758,150.03,150.0,1e-08]
[1745462156694,18.64964886,150.02,150.0,1e-08]
[1745462157317,34.26976331,150.02,150.0,1e-08]
[1745462158195,6.66622225,150.01,150.0,1e-08]
[1745462159018,6.66622225,150.01,150.0,15.62011446]
[1745462159811,6.66577789,150.02,150.0,15.62011446]
[1745462160830,6.66542846,150.03,150.01,15.62011445]
[1745462161034,6.66444518,150.05,150.02,15.62011445]
[1745462161235,6.66444518,150.05,150.04,15.62011445]
[1745462161623,6.66444518,150.05,150.03,15.62011445]
[1745462162129,23.32449039,150.06,150.03,15.62011445]
[1745462164338,23.32449039,150.06,150.01,26.0]
[1745462164636,23.32449039,150.06,150.02,15.62011445]
[1745462165338,23.32449039,150.06,150.02,10.00298519]
[1745462166722,18.64964886,150.05,150.01,10.00298519]
[1745462166922,28.65263405,150.05,150.01,10.00298519]
[1745462167222,18.64964886,150.05,150.01,10.00298519]
[1745462167839,23.32711276,150.04,150.01,10.00298519]
[1745462169551,28.65263405,150.03,150.0,1e-08]
[1745462169716,6.66577789,150.02,150.0,1e-08]
[1745462170115,6.66577789,150.02,150.0,10.0029852]
[1745462170537,6.66577789,150.02,150.0,1e-08]
[1745462173649,18.64964886,150.01,149.98,10.00298519]
[1745462174953,6.66666666,150.0,149.98,10.00298519]
[1745462175153,6.66666666,150.0,149.99,10.00298519]
[1745462176360,6.66622225,150.01,149.99,10.00298519]
[1745462176665,6.66622225,150.01,149.98,10.00298519]
[1745462176841,6.66622225,150.01,149.99,10.00298519]
[1745462179340,20.14584542,150.02,150.0,10.00298519]
[1745462179540,20.14584542,150.02,150.01,10.00298519]
[1745462181161,20.14584542,150.02,149.99,10.00298519]
[1745462181343,20.14584542,150.02,149.98,10.00298519]
[1745462181542,36.81029016,150.02,149.98,10.00298519]
[1745462182240,18.64964886,150.01,149.98,10.00298519]
[1745462182442,18.64964886,150.01,149.97,10.00298519]
[1745462183259,6.66666666,150.0,149.97,10.00298519]
[1745462184158,23.33333332,150.0,149.97,10.00298519]
[1745462184457,23.33333332,150.0,149.93,26.0]
[1745462184662,18.64964886,149.99,149.96,10.00298519]
[1745462185167,6.66755567,149.98,149.96,10.00298519]
[1745462189265,18.64964886,149.97,149.88,9.88119303]
[1745462189471,10.00298519,149.96,149.92,10.00298519]
[1745462189676,42.13263405,149.97,149.9,26.0]
[1745462189975,42.13263405,149.97,149.92,10.00298519]
[1745462190147,42.13263405,149.97,149.93,10.00298519]
[1745462191172,42.13263405,149.97,149.9,26.0]
[1745462191366,18.64964886,149.95,149.91,10.00298519]
[1745462191753,18.64964886,149.95,149.92,10.00298519]
[1745462192263,18.64964886,149.93,149.84,41.69824076]
[1745462192463,10.00298519,149.93,149.88,10.00298519]
[1745462193171,10.00298519,149.93,149.84,41.69824076]
[1745462193172,28.65263405,149.91,149.84,1.6863]
[1745462193371,18.64964886,149.89,149.84,0.063]
[1745462193674,18.64964886,149.89,149.85,10.00298519]
[1745462194975,18.64964886,149.89,149.84,0.063]
[1745462195380,6.67200427,149.88,149.84,10.06598519]
[1745462196175,18.64964886,149.87,149.84,10.06598519]
[1745462197176,18.64964886,149.87,149.84,0.063]
[1745462197480,6.6728947,149.86,149.84,10.00298519]
[1745462197777,6.6728947,149.86,149.8,8.29881425]
[1745462197962,6.6728947,149.86,149.84,10.00298519]
[1745462198979,6.67200427,149.88,149.85,10.00298519]
[1745462200362,6.67200427,149.88,149.86,10.00298519]
[1745462201397,13.48,149.92,149.87,10.00298519]
[1745462201600,13.48,149.92,149.91,10.00298519]
[1745462201779,13.48,149.92,149.9,10.00298519]
[1745462202584,20.15034359,149.92,149.89,10.00298519]
[1745462202964,20.15034359,149.92,149.87,26.0]
[1745462203185,18.64964886,149.91,149.87,26.0]
[1745462203361,18.64964886,149.91,149.89,10.00298519]
[1745462203681,36.82590388,149.92,149.9,10.00298519]
[1745462203860,36.82590388,149.92,149.87,26.0]
[1745462204061,18.64964886,149.91,149.83,26.0]
[1745462204372,18.64964886,149.91,149.87,10.00298519]
[1745462204572,18.64964886,149.89,149.87,10.00298519]
[1745462205878,18.64964886,149.89,149.87,9.50298519]
[1745462206597,18.64964886,149.9,149.88,10.00298519]
[1745462206887,28.65263405,149.9,149.82,26.0]
[1745462207190,28.65263405,149.9,149.86,10.00298519]
[1745462207369,32.35654176,149.9,149.85,13.7068929]
[1745462207772,6.67155914,149.89,149.85,13.7068929]
[1745462207975,18.64964886,149.88,149.84,13.7068929]
[1745462209599,28.86425447,149.87,149.82,13.7068929]
[1745462209904,18.64964886,149.85,149.82,13.7068929]
[1745462210192,18.64964886,149.85,149.83,13.7068929]
[1745462211081,6.6728947,149.86,149.84,13.7068929]
[1745462211861,6.6728947,149.86,149.85,13.7068929]
[1745462212058,13.48,149.89,149.85,13.7068929]
[1745462212280,13.48,149.89,149.81,14.63740054]
[1745462212662,18.64964886,149.88,149.84,13.7068929]
[1745462212858,18.64964886,149.88,149.86,13.7068929]
[1745462213800,6.67244945,149.87,149.86,13.7068929]
[1745462214375,6.67244945,149.87,149.84,13.7068929]
[1745462214970,6.67244945,149.87,149.85,13.7068929]
[1745462215185,6.67210965,149.88,149.86,13.7068929]
[1745462215778,6.67210965,149.88,149.87,13.7068929]
[1745462216092,6.67210965,149.88,149.86,13.7068929]
[1745462216693,20.15170152,149.89,149.87,13.7068929]
[1745462217698,20.15170152,149.89,149.86,13.7068929]
[1745462218693,20.15170152,149.89,149.88,13.7068929]
[1745462218899,30.15409004,149.94,149.88,13.7068929]
[1745462219194,18.64964886,149.93,149.91,13.7068929]
[1745462219492,25.31942809,149.93,149.91,13.7068929]
[1745462219699,6.66977923,149.93,149.92,13.7068929]
[1745462219884,20.14958346,149.94,149.92,13.7068929]
[1745462220072,6.66958346,149.94,149.93,13.7068929]
[1745462220267,6.66958346,149.94,149.9,13.7068929]
[1745462220583,18.64964886,149.93,149.9,13.7068929]
[1745462221112,18.64964886,149.93,149.86,26.0]
[1745462221113,47.34224176,149.93,149.86,26.0]
[1745462221400,47.34224176,149.93,149.88,13.7068929]
[1745462221988,18.64964886,149.91,149.89,13.7068929]
[1745462222487,6.67022411,149.92,149.89,13.7068929]
[1745462223701,23.3457844,149.92,149.89,13.7068929]
[1745462227304,23.3457844,149.92,149.89,8.76860246]
[1745462229376,6.67111407,149.9,149.88,8.76860246]
[1745462231299,6.67022411,149.92,149.89,8.76860246]
[1745462231502,6.67022411,149.92,149.91,8.76860246]
[1745462233303,23.37213702,149.95,149.91,8.76860246]
[1745462233601,23.37213702,149.95,149.87,69.08083015]
[1745462233602,23.37213702,149.95,149.93,8.76860246]
[1745462233810,23.37213702,149.95,149.94,8.76860246]
[1745462234185,23.37213702,149.95,149.93,8.76860246]
[1745462234378,6.69888962,149.95,149.94,8.76860246]
[1745462234579,0.03,149.95,149.94,8.76860246]
[1745462236313,0.03,149.95,149.94,43.8430123]
[1745462238004,6.66622225,150.01,149.97,26.0]
[1745462238307,6.66622225,150.01,150.0,8.76860246]
[1745462239094,6.66577789,150.02,150.0,8.76860246]
[1745462239508,25.31542675,150.02,149.98,8.76860246]
[1745462239688,18.64964886,150.01,149.98,8.76860246]
[1745462240722,6.66666666,150.0,149.98,8.76860246]
[1745462243207,6.66666666,150.0,149.99,8.76860246]
[1745462243594,6.66577789,150.02,149.99,8.76860246]
[1745462243808,6.66577789,150.02,150.01,8.76860246]
[1745462248104,0.03,150.03,150.01,8.76860246]
[1745462248311,0.03,150.03,150.02,8.76860246]
[1745462250017,20.2697,150.11,150.04,26.0]
[1745462250218,8.23762518,150.1,150.09,8.76860246]
[1745462250404,26.88727404,150.1,150.09,8.76860246]
[1745462250590,26.88727404,150.1,150.08,8.76860246]
[1745462252012,18.64964886,150.09,150.07,8.76860246]
[1745462252324,6.66222518,150.1,150.08,8.76860246]
[1745462252511,6.66222518,150.1,150.09,8.76860246]
[1745462253508,20.40189003,150.11,150.09,8.76860246]
[1745462253706,6.66189003,150.11,150.1,8.76860246]
[1745462254831,6.69145725,150.12,150.1,8.76860246]
[1745462255014,6.69145725,150.12,150.11,8.76860246]
[1745462255719,0.03,150.12,150.1,8.76860246]
[1745462256324,0.03,150.12,150.11,8.76860246]
[1745462257439,27.44825132,150.12,150.04,26.0]
[1745462257601,27.44825132,150.12,150.07,8.76860246]
[1745462257802,6.66178136,150.11,150.07,8.76860246]
[1745462258022,6.66178136,150.11,150.08,8.76860246]
[1745462258221,6.66178136,150.11,150.06,26.0]
[1745462258404,6.66178136,150.11,150.08,8.76860246]
[1745462259336,18.64964886,150.1,150.06,15.61942925]
[1745462259716,34.26907811,150.1,150.05,15.61942925]
[1745462259927,23.31934172,150.09,150.05,15.61942925]
[1745462260439,23.31934172,150.09,150.01,14.12428719]
[1745462260815,23.31934172,150.09,150.06,15.61942925]
[1745462261037,23.31934172,150.09,150.05,15.61942925]
[1745462261234,18.64964886,150.08,150.01,7.45809472]
[1745462261443,15.61942925,150.07,150.02,15.61942925]
[1745462261941,6.663557,150.07,150.06,15.61942925]
[1745462262224,6.66328264,150.08,150.06,15.61942925]
[1745462262619,6.66282957,150.09,150.07,15.61942925]
[1745462262813,6.66282957,150.09,150.06,15.61942925]
[1745462263004,6.66282957,150.09,150.05,15.61942925]
[1745462263619,22.28225882,150.09,150.05,15.61942925]
[1745462263821,38.93893148,150.09,150.05,15.61942925]
[1745462264111,23.32244951,150.07,150.04,15.61942925]
[1745462264637,23.32244951,150.07,150.02,26.0]
[1745462264638,23.32244951,150.07,150.03,15.61942925]
[1745462266949,23.32244951,150.07,150.04,15.61942925]
[1745462268933,6.663557,150.07,150.05,15.61942925]
[1745462269658,6.663557,150.07,150.04,15.61942925]
[1745462270243,6.663557,150.07,150.01,26.0]
[1745462270445,6.663557,150.07,150.04,15.61942925]
[1745462271241,13.72,150.1,150.06,41.61942925]
[1745462271445,13.72,150.1,150.09,15.61942925]
[1745462271755,13.72,150.1,150.07,15.61942925]
[1745462271756,20.38238728,150.1,150.07,15.61942925]
[1745462276956,20.38238728,150.1,150.08,15.61942925]
[1745462278559,20.38238728,150.1,150.07,15.61942925]
[1745462278850,20.38238728,150.1,150.08,15.61942925]
[1745462279249,13.72,150.1,150.09,15.61942925]
[1745462279460,18.67964886,150.12,150.09,15.61942925]
[1745462279461,6.66194808,150.11,150.09,15.61942925]
[1745462279646,6.66194808,150.11,150.1,15.61942925]
[1745462280954,0.03,150.12,150.1,15.61942925]
[1745462281165,0.03,150.12,150.05,27.33239915]
[1745462281166,0.03,150.12,150.11,15.61942925]
[1745462281367,0.03,150.12,150.11,9.98956991]
[1745462286246,0.03,150.12,150.1,9.98956991]
[1745462287046,0.03,150.12,150.09,9.98956991]
[1745462287253,0.03,150.12,150.08,35.98956991]
[1745462287449,6.66178136,150.11,150.08,35.98956991]
[1745462287646,6.66178136,150.11,150.08,9.98956991]
[1745462289472,5.66178136,150.11,150.08,9.98956991]
[1745462290774,22.31623476,150.11,150.08,9.98956991]
[1745462290978,22.31623476,150.11,150.07,9.98956991]
[1745462291188,22.31623476,150.11,150.04,9.98956991]
[1745462291189,9.98956991,150.09,150.04,9.98956991]
[1745462291351,9.98956991,150.08,150.03,9.98956991]
[1745462291551,9.98956991,150.08,150.03,35.98956991]
[1745462292275,6.663557,150.07,150.03,35.98956991]
[1745462292480,18.64964886,150.06,149.99,7.40481974]
[1745462292784,9.98956991,150.04,149.99,9.98956991]
[1745462292965,9.98956991,150.04,149.99,35.98956991]
[1745462293563,9.98956991,150.04,150.0,9.98956991]
[1745462293767,9.98956991,150.04,149.99,35.98956991]
[1745462294082,18.64964886,150.04,150.0,9.98956991]
[1745462294254,1.5321,150.05,150.02,9.98956991]
[1745462294455,6.66488936,150.04,150.02,9.98956991]
[1745462294684,6.66430029,150.06,150.03,9.98956991]
[1745462295580,6.66430029,150.06,150.04,9.98956991]
[1745462296594,25.31320586,150.07,150.03,9.98956991]
[1745462296757,35.30277577,150.07,150.02,9.98956991]
[1745462296959,35.30277577,150.07,149.99,32.66697852]
[1745462296960,9.98956991,150.06,150.01,9.98956991]
[1745462297158,18.64964886,150.05,150.01,9.98956991]
[1745462297459,18.64964886,150.01,149.96,0.063]
[1745462297666,15.63258433,149.99,149.96,0.063]
[1745462298770,6.66755567,149.98,149.96,0.063]
[1745462298971,22.30014,149.98,149.96,0.063]
[1745462300083,6.66755567,149.98,149.96,0.063]
[1745462300282,22.30014,149.98,149.96,0.063]
[1745462300593,34.28223319,149.97,149.96,0.063]
[1745462300762,54.53023345,149.97,149.96,0.063]
[1745462301257,62.53779502,149.97,149.96,1e-08]
[1745462304768,62.39563345,149.97,149.96,1e-08]
[1745462306682,38.89764912,149.97,149.96,1e-08]
[1745462310284,20.24800026,149.97,149.96,1e-08]
[1745462311979,54.53023345,149.97,149.96,1e-08]
[1745462312394,38.89764912,149.97,149.96,1e-08]
[1745462312790,20.24800026,149.97,149.96,1e-08]
[1745462314404,13.58,149.97,149.96,1e-08]
[1745462314707,6.66768265,149.98,149.96,15.63258434]
[1745462314892,6.66768265,149.98,149.97,15.63258433]
[1745462315693,6.66666666,150.0,149.97,15.63258433]
[1745462315902,6.66666666,150.0,149.98,15.63258433]
[1745462316096,6.66666666,150.0,149.97,15.63258433]
[1745462316405,6.66666666,150.0,149.98,15.63258433]
[1745462317297,6.66635942,150.01,149.99,15.63258433]
[1745462317491,6.66635942,150.01,150.0,15.63258433]
[1745462317882,6.66635942,150.01,149.99,15.63258433]
[1745462319505,18.64964886,150.0,149.96,1e-08]
[1745462319713,18.64964886,150.0,149.97,15.63258433]
[1745462319997,18.64964886,150.0,149.98,15.63258433]
[1745462322201,6.66711114,149.99,149.98,15.63258433]
[1745462325094,6.66622225,150.01,149.98,15.63258433]
[1745462325294,6.66622225,150.01,149.99,15.63258433]
[1745462329322,6.66622225,150.01,149.99,10.00695352]
[1745462330519,6.66622225,150.01,149.97,26.0]
[1745462330704,6.66622225,150.01,149.98,10.00695352]
[1745462332920,6.66622225,150.01,149.96,1e-08]
[1745462333225,18.64964886,150.0,149.97,10.00695352]
[1745462333716,6.66622225,150.01,149.98,10.00695352]
[1745462333921,6.66622225,150.01,149.97,10.00695352]
[1745462334108,6.66622225,150.01,149.98,10.00695352]
[1745462336125,6.66622225,150.01,149.97,10.00695352]
[1745462336327,6.66622225,150.01,149.98,10.00695352]
[1745462337925,32.86964886,150.02,149.99,10.00695352]
[1745462337926,39.53554794,150.02,149.99,10.00695352]
[1745462338225,39.53554794,150.02,150.0,10.00695352]
[1745462338599,39.53554794,150.02,149.99,10.00695352]
[1745462338800,39.53554794,150.02,149.98,10.00695352]
[1745462341736,39.53554794,150.02,149.97,10.00695352]
[1745462342029,39.53554794,150.02,149.98,10.00695352]
[1745462342525,56.19999268,150.02,149.96,26.00000001]
[1745462342728,56.19999268,150.02,149.97,10.00695352]
[1745462344224,18.64964886,150.01,149.96,10.00695353]
[1745462344606,18.64964886,150.01,149.97,10.00695352]
[1745462344805,18.64964886,150.01,149.98,10.00695352]
[1745462345840,37.55034382,150.02,149.99,10.00695352]
[1745462346219,37.55034382,150.02,149.98,10.00695352]
[1745462347232,18.64964886,150.01,149.96,10.00695353]
[1745462347808,18.64964886,150.01,149.97,10.00695352]
[1745462350431,6.66666666,150.0,149.97,10.00695352]
[1745462350618,23.33333332,150.0,149.96,1e-08]
[1745462350818,23.33333332,150.0,149.96,10.00695353]
[1745462351531,28.65660238,149.97,149.96,1e-08]
[1745462351704,42.61660238,149.97,149.96,1e-08]
[1745462351907,42.75876395,149.97,149.96,1e-08]
[1745462352635,75.42676421,149.97,149.96,1e-08]
[1745462357527,75.28460264,149.97,149.96,1e-08]
[1745462357843,75.42676421,149.97,149.96,1e-08]
[1745462360450,75.28460264,149.97,149.96,1e-08]
[1745462361139,49.28460264,149.97,149.96,1e-08]
[1745462367759,39.27764912,149.97,149.96,1e-08]
[1745462375467,20.62800026,149.97,149.96,1e-08]
[1745462378376,39.27764912,149.97,149.96,1e-08]
[1745462379851,49.28460264,149.97,149.96,1e-08]
[1745462380274,39.27764912,149.97,149.96,1e-08]
[1745462384756,49.28460264,149.97,149.96,1e-08]
[1745462388580,49.42676421,149.97,149.96,1e-08]
[1745462388984,39.27764912,149.97,149.96,1e-08]
[1745462389282,20.62800026,149.97,149.96,10.00695353]
[1745462390561,20.62800026,149.97,149.96,1e-08]
[1745462390762,39.27764912,149.97,149.96,1e-08]
[1745462391867,49.28460264,149.97,149.96,1e-08]
[1745462393484,39.27764912,149.97,149.96,1e-08]
[1745462396889,20.62800026,149.97,149.96,10.00695353]
[1745462397186,20.62800026,149.97,149.96,1e-08]
[1745462400290,50.97676421,149.97,149.96,1e-08]
[1745462403581,57.50656421,149.97,149.96,1e-08]
[1745462404403,44.64964886,149.93,149.88,0.063]
[1745462404695,18.64964886,149.89,149.88,0.063]
[1745462404895,18.64964886,149.89,149.88,1e-08]
[1745462404896,28.65660238,149.89,149.88,1e-08]
[1745462405492,35.47032309,149.89,149.88,1e-08]
[1745462408388,25.46336957,149.89,149.88,1e-08]
[1745462408706,35.47032309,149.89,149.88,1e-08]
[1745462409805,35.32816152,149.89,149.88,1e-08]
[1745462409996,25.321208,149.89,149.88,1e-08]
[1745462410198,6.67155914,149.89,149.88,10.00695353]
[1745462410591,6.67155914,149.89,149.88,1e-08]
[1745462411414,6.67155914,149.89,149.88,10.00695353]
[1745462411597,6.67155914,149.89,149.88,1e-08]
[1745462411784,6.67111407,149.9,149.88,1e-08]
[1745462416405,6.67111407,149.9,149.89,10.00695352]
[1745462416799,6.67111407,149.9,149.88,1e-08]
[1745462417119,6.67111407,149.9,149.88,10.00695353]
[1745462417415,6.67111407,149.9,149.88,1e-08]
[1745462419413,16.67806759,149.9,149.88,1e-08]
[1745462419617,10.00695352,149.89,149.88,1e-08]
[1745462419990,28.79876395,149.89,149.88,1e-08]
[1745462420707,61.37846395,149.89,149.88,1e-08]
[1745462420920,68.05002309,149.89,149.88,1e-08]
[1745462421920,61.47032309,149.89,149.88,1e-08]
[1745462422232,25.321208,149.89,149.88,1e-08]
[1745462424306,35.32816152,149.89,149.88,1e-08]
[1745462428522,25.321208,149.89,149.88,1e-08]
[1745462430920,35.32816152,149.89,149.88,1e-08]
[1745462435626,49.26816152,149.89,149.88,1e-08]
[1745462436127,75.41032309,149.89,149.88,1e-08]
[1745462437228,51.03352309,149.89,149.88,1e-08]
[1745462439333,76.89136152,149.89,149.88,1e-08]
[1745462439631,77.03352309,149.89,149.88,1e-08]
[1745462442941,75.41032309,149.89,149.88,1e-08]
[1745462444527,65.40336957,149.89,149.88,1e-08]
[1745462444833,75.41032309,149.89,149.88,1e-08]
[1745462446169,6.67155914,149.89,149.88,1e-08]
[1745462446446,6.67116427,149.9,149.88,10.00695353]
[1745462446628,6.67116427,149.9,149.89,10.00695352]
[1745462446823,6.67116427,149.9,149.88,10.00695353]
[1745462447644,6.67116427,149.9,149.88,1e-08]
[1745462447848,6.67116427,149.9,149.89,10.00695352]
[1745462451555,6.67116427,149.9,149.88,1e-08]
[1745462451855,6.67116427,149.9,149.89,10.00695352]
[1745462455257,6.67116427,149.9,149.88,1e-08]
[1745462455467,6.67116427,149.9,149.88,10.00695353]
[1745462455643,18.64964886,149.89,149.88,1e-08]
[1745462457862,6.67155914,149.89,149.88,1e-08]
[1745462458256,25.32076293,149.9,149.88,1e-08]
[1745462459765,16.82067423,149.89,149.88,1e-08]
[1745462459965,6.67066906,149.91,149.88,1e-08]
[1745462460136,0.03,149.96,149.91,26.0]
[1745462460462,0.03,149.96,149.95,10.00695352]
[1745462461258,0.03,149.96,149.95,41.63704191]
[1745462463761,18.67964886,150.03,149.95,32.66888962]
[1745462463965,0.03,150.03,150.0,15.63704191]
[1745462464464,0.03,150.03,150.01,15.63704191]
[1745462465266,6.69543354,150.03,150.01,15.63704191]
[1745462465460,6.69543354,150.03,149.99,15.63704191]
[1745462465959,34.31669077,150.03,149.96,26.0]
[1745462466141,34.31669077,150.03,149.98,15.63704191]
[1745462466869,18.67964886,150.03,149.99,15.63704191]
[1745462468967,6.66577789,150.02,149.99,15.63704191]
[1745462470053,6.66577789,150.02,150.0,15.63704191]
[1745462470261,18.64964886,150.01,149.94,32.66933043]
[1745462470468,18.64964886,150.01,149.95,1.33341754]
[1745462470669,18.64964886,150.01,150.0,15.63704191]
[1745462470863,18.64964886,150.01,149.94,26.0]
[1745462471053,6.66666666,150.0,149.98,15.63704191]
[1745462471669,25.31631552,150.0,149.99,15.63704191]
[1745462473572,25.31631552,150.0,149.93,1.3334335]
[1745462473761,18.64964886,149.99,149.98,15.63704191]
[1745462473956,6.66666666,150.0,149.98,15.63704191]
[1745462474164,6.66666666,150.0,149.99,15.63704191]
[1745462474962,6.66666666,150.0,149.93,27.33364165]
[1745462475176,6.66666666,150.0,149.97,15.63704191]
[1745462475775,6.66666666,150.0,149.94,26.0]
[1745462475776,6.66666666,150.0,149.98,15.63704191]
[1745462476571,6.66666666,150.0,149.97,15.63704191]
[1745462476977,23.33333332,150.0,149.97,15.63704191]
[1745462477164,18.64964886,149.99,149.96,15.63704191]
[1745462477756,18.64964886,149.99,149.92,23.64294191]
[1745462478050,34.28669077,149.99,149.94,15.63704191]
[1745462478257,18.64964886,149.99,149.96,15.63704191]
[1745462478561,18.64964886,149.99,149.97,15.63704191]
[1745462479057,25.31720453,149.98,149.97,15.63704191]
[1745462480569,6.66755567,149.98,149.97,15.63704191]
[1745462481680,23.33333332,150.0,149.97,15.63704191]
[1745462481873,23.33333332,150.0,149.98,15.63704191]
[1745462482375,23.33333332,150.0,149.92,27.33356944]
[1745462482562,23.33333332,150.0,149.97,15.63704191]
[1745462482876,23.33333332,150.0,149.98,15.63704191]
[1745462483877,23.33333332,150.0,149.97,15.63704191]
[1745462484183,18.64964886,149.99,149.96,15.63704191]
[1745462486451,6.66755567,149.98,149.96,15.63704191]
[1745462486878,6.66755567,149.98,149.97,15.63704191]
[1745462487285,6.66755567,149.98,149.96,8.7591758]
[1745462487881,6.66755567,149.98,149.97,8.7591758]
[1745462488581,23.33644485,149.98,149.92,27.33368598]
[1745462488787,23.33644485,149.98,149.96,8.7591758]
[1745462489287,23.33644485,149.98,149.97,8.7591758]
[1745462489790,23.33644485,149.98,149.94,35.0367032]
[1745462490086,27.40882466,149.97,149.91,26.0]
[1745462490264,27.40882466,149.97,149.91,34.7591758]
[1745462490459,18.64964886,149.97,149.94,8.7591758]
[1745462490660,6.66844491,149.96,149.95,8.7591758]
[1745462492191,6.66844491,149.96,149.91,26.0]
[1745462492376,6.66844491,149.96,149.95,8.7591758]
[1745462493286,16.66888918,149.98,149.91,26.0]
[1745462493287,18.64964886,149.97,149.91,26.0]
[1745462493488,18.64964886,149.97,149.93,8.7591758]
[1745462493661,18.64964886,149.97,149.91,26.0]
[1745462493866,18.64964886,149.97,149.94,8.7591758]
[1745462495392,6.66844491,149.96,149.94,8.7591758]
[1745462497793,6.66844491,149.96,149.91,26.0]
[1745462497972,6.66844491,149.96,149.93,8.7591758]
[1745462498173,6.66844491,149.96,149.94,8.7591758]
[1745462498590,6.66844491,149.96,149.91,26.0]
[1745462498591,18.64964886,149.95,149.89,0.063]
[1745462498889,18.64964886,149.95,149.91,8.7591758]
[1745462499883,23.3426704,149.94,149.91,8.7591758]
[1745462500367,23.3426704,149.94,149.93,8.7591758]
[1745462500573,41.99231926,149.94,149.93,8.7591758]
[1745462501285,6.6693344,149.94,149.93,8.7591758]
[1745462501779,6.6693344,149.94,149.92,8.7591758]
[1745462505390,33.6092462,149.94,149.89,0.063]
[1745462505590,18.64964886,149.93,149.89,8.8221758]
[1745462505888,18.64964886,149.93,149.9,8.7591758]
[1745462507412,6.67022411,149.92,149.9,8.7591758]
[1745462507706,6.67022411,149.92,149.91,8.7591758]
[1745462508777,18.64964886,149.91,149.89,0.063]
[1745462509605,6.67111407,149.9,149.89,0.063]
[1745462510195,25.32076293,149.9,149.89,0.063]
[1745462510390,6.67111407,149.9,149.89,8.8221758]
[1745462511708,6.67066906,149.91,149.89,8.8221758]
[1745462512090,6.67066906,149.91,149.9,8.7591758]
[1745462514820,6.66888962,149.95,149.9,8.7591758]
[1745462514997,25.31853848,149.95,149.94,8.7591758]
[1745462517015,18.64964886,149.94,149.89,0.063]
[1745462517220,18.64964886,149.94,149.93,8.7591758]
[1745462517804,25.31898326,149.94,149.93,8.7591758]
[1745462521627,25.31898326,149.94,149.9,26.0]
[1745462521919,25.31898326,149.94,149.93,8.7591758]
[1745462523128,25.31898326,149.94,149.9,26.0]
[1745462523424,25.31898326,149.94,149.93,8.7591758]
[1745462526622,6.66890663,149.95,149.93,8.7591758]
[1745462526818,6.66890663,149.95,149.94,8.7591758]
[1745462527228,6.66800026,149.97,149.94,8.7591758]
[1745462527431,6.66800026,149.97,149.96,8.7591758]
[1745462528313,23.33717893,149.98,149.96,8.7591758]
[1745462528744,18.64964886,149.97,149.94,8.7591758]
[1745462529225,18.64964886,149.97,149.9,26.0]
[1745462529532,18.64964886,149.97,149.92,8.7591758]
[1745462529729,8.7591758,149.96,149.89,27.661]
[1745462530027,8.7591758,149.96,149.91,8.7591758]
[1745462530235,23.3395572,149.96,149.92,8.7591758]
[1745462532616,23.3395572,149.96,149.9,26.0]
[1745462532838,23.3395572,149.96,149.92,8.7591758]
[1745462534017,23.3395572,149.96,149.91,8.7591758]
[1745462537714,32.098733,149.96,149.91,8.7591758]
[1745462537914,18.64964886,149.93,149.9,8.7591758]
[1745462538116,18.64964886,149.93,149.89,34.8221758]
[1745462539139,18.64964886,149.91,149.89,0.063]
[1745462540021,6.67111407,149.9,149.89,0.063]
[1745462541428,25.32076293,149.9,149.89,0.063]
[1745462541630,34.07993873,149.9,149.89,0.063]
[1745462542439,25.32076293,149.9,149.89,0.063]
[1745462542733,6.6706924,149.91,149.89,8.8221758]
[1745462542941,6.6706924,149.91,149.9,8.7591758]
[1745462543322,6.6706924,149.91,149.89,0.063]
[1745462543522,6.6706924,149.91,149.9,8.7591758]
[1745462544234,6.6706924,149.91,149.89,0.063]
[1745462545826,6.6706924,149.91,149.89,8.8221758]
[1745462546225,25.32034126,149.91,149.9,8.7591758]
[1745462546447,25.32034126,149.91,149.89,0.063]
[1745462546840,25.32034126,149.91,149.89,8.8221758]
[1745462548654,25.32034126,149.91,149.89,0.063]
[1745462548837,6.6706924,149.91,149.9,8.7591758]
[1745462549143,6.6706924,149.91,149.89,8.8221758]
[1745462551351,6.6706924,149.91,149.9,8.7591758]
[1745462552051,18.64964886,149.92,149.9,8.7591758]
[1745462552226,18.64964886,149.92,149.89,0.063]
[1745462552428,18.64964886,149.92,149.9,8.7591758]
[1745462552730,6.66977923,149.93,149.9,8.7591758]
[1745462552937,6.66977923,149.93,149.92,8.7591758]
[1745462553131,6.66977923,149.93,149.89,26.063]
[1745462553339,6.66977923,149.93,149.91,8.7591758]
[1745462554051,25.31910061,149.94,149.92,8.7591758]
[1745462554350,25.31910061,149.94,149.93,8.7591758]
[1745462555234,6.66945175,149.94,149.93,8.7591758]
[1745462557155,25.31853848,149.95,149.93,8.7591758]